fUSD/lending_fUSD_20251213
["ID","MTS","AMOUNT","RATE_DAILY","PERIOD"]
[398435927,1765654310180,-153.0,0.00038802,120]
[398435928,1765654310215,-153.0,0.00038802,120]
[398435929,1765654310245,-153.0,0.00038802,120]
[398435930,1765654310274,-153.0,0.00038802,120]
[398435931,1765654310305,-153.0,0.00038802,120]
[398435932,1765654310335,-153.0,0.00038802,120]
[398435933,1765654310367,-153.0,0.00038802,120]
[398435934,1765654310399,-153.0,0.00038802,120]
[398435935,1765654310433,-153.0,0.00038802,120]
[398435936,1765654310465,-153.0,0.00038802,120]
[398435937,1765654310497,-153.0,0.00038802,120]
[398435938,1765654310528,-153.0,0.00038802,120]
[398435939,1765654310559,-153.0,0.00038802,120]
[398435940,1765654310591,-153.0,0.00038802,120]
[398435941,1765654310627,-153.0,0.00038802,120]
[398435942,1765654310661,-153.0,0.00038802,120]
[398435943,1765654310695,-153.0,0.00038802,120]
[398435944,1765654310730,-153.0,0.00038802,120]
[398435945,1765654310763,-153.0,0.00038802,120]
[398435946,1765654310794,-153.0,0.00038802,120]
[398435947,1765654310824,-153.0,0.00038802,120]
[398435948,1765654310853,-153.0,0.00038802,120]
[398435949,1765654310884,-153.0,0.00038802,120]
[398435950,1765654310916,-153.0,0.00038802,120]
[398435951,1765654310950,-153.0,0.00038802,120]
[398435952,1765654310980,-153.0,0.00038802,120]
[398435953,1765654311013,-312.0,0.00038822,33]
[398435954,1765654311045,-483.3125,0.00038888,30]
[398435955,1765654311077,-2104.16,0.00038904,120]
[398435956,1765654311109,-552.22572725,0.00038904,120]
[398435957,1765654311142,-500.0,0.00038904,120]
[398435958,1765654311175,-500.0,0.00038904,30]
[398435959,1765654311209,-2000.0,0.00038904,120]
[398435960,1765654311247,-1537.83,0.00038904,66]
[398435961,1765654311280,-151.0,0.00038904,60]
[398435962,1765654311313,-151.0,0.00038904,60]
[398435963,1765654311586,-151.0,0.00038904,60]
[398435964,1765654311627,-151.0,0.00038904,60]
[398435965,1765654311668,-151.0,0.00038904,60]
[398435966,1765654311708,-151.0,0.00038904,60]
[398435967,1765654311748,-151.0,0.00038904,60]
[398435968,1765654311787,-151.0,0.00038904,60]
[398435969,1765654311826,-151.0,0.00038904,60]
[398435970,1765654311863,-151.0,0.00038904,60]
[398435971,1765654311899,-151.0,0.00038904,60]
[398435972,1765654311938,-151.0,0.00038904,60]
[398435973,1765654311977,-173.38626,0.00038904,60]
[398435974,1765654312017,-215.0,0.0003891,30]
[398435975,1765654312060,-215.39289731,0.00038915,120]
[398435976,1765654312099,-958.0,0.00039,30]
[398435977,1765654312135,-500.0,0.00039,59]
[398435978,1765654312176,-1500.0,0.00039,30]
[398435979,1765654312220,-300.0,0.00039,30]
[398435980,1765654312260,-300.0,0.00039,30]
[398435981,1765654312298,-300.0,0.00039,30]
[398435982,1765654312337,-300.0,0.00039,30]
[398435983,1765654312375,-300.0,0.00039,30]
[398435984,1765654312409,-199.0,0.00039041,37]
[398435985,1765654312444,-4902.636279,0.00039041,120]
[398435986,1765654312479,-4902.636279,0.00039041,120]
[398435987,1765654312515,-4902.636279,0.00039041,120]
[398435988,1765654312553,-4902.636279,0.00039041,120]
[398435989,1765654312588,-4902.636279,0.00039041,120]
[398435990,1765654312624,-4902.636279,0.00039041,120]
[398435991,1765654312658,-4902.636279,0.00039041,120]
[398435992,1765654312691,-4902.636279,0.00039041,120]
[398435993,1765654312725,-4902.636279,0.00039041,120]
[398435994,1765654312757,-4902.636279,0.00039041,120]
[398435995,1765654312790,-4902.636279,0.00039041,120]
[398435996,1765654312823,-4902.636279,0.00039041,120]
[398435997,1765654312853,-4902.636279,0.00039041,120]
[398435998,1765654312887,-4902.636279,0.00039041,120]
[398435999,1765654312919,-4902.636279,0.00039041,120]
[398436000,1765654312950,-4902.636279,0.00039041,120]
[398436001,1765654312983,-4902.636279,0.00039041,120]
[398436002,1765654313015,-4902.636279,0.00039041,120]
[398436003,1765654313051,-4902.636279,0.00039041,120]
[398436004,1765654313085,-4902.63627625,0.00039041,120]
[398436005,1765654313119,-153.0,0.00039045,120]
[398436006,1765654313153,-153.0,0.00039045,120]
[398436007,1765654313187,-153.0,0.00039045,120]
[398436008,1765654313224,-153.0,0.00039045,120]
[398436009,1765654313262,-153.0,0.00039045,120]
[398436010,1765654313297,-153.0,0.00039045,120]
[398436011,1765654313335,-153.0,0.00039045,120]
[398436012,1765654313370,-153.0,0.00039045,120]
[398436013,1765654313406,-153.0,0.00039045,120]
[398436014,1765654313440,-153.0,0.00039045,120]
[398436015,1765654313475,-153.0,0.00039045,120]
[398436016,1765654313508,-153.0,0.00039045,120]
[398436017,1765654313541,-153.0,0.00039045,120]
[398436018,1765654313574,-153.0,0.00039045,120]
[398436019,1765654313609,-153.0,0.00039045,120]
[398436020,1765654313643,-153.0,0.00039045,120]
[398436021,1765654313676,-153.0,0.00039045,120]
[398436022,1765654313709,-153.0,0.00039045,120]
[398436023,1765654313742,-153.0,0.00039045,120]
[398436024,1765654313774,-153.0,0.00039045,120]
[398436025,1765654313807,-18900.0,0.000391,60]
[398436026,1765654313840,-782.52,0.00039162,120]
[398436027,1765654313873,-2104.16,0.00039178,120]
[398436028,1765654313905,-500.0,0.00039178,30]
[398436029,1765654313937,-1537.83,0.00039178,68]
[398436030,1765654313970,-500.0,0.00039178,120]
[398436031,1765654314003,-500.0,0.00039189,120]
[398436032,1765654314035,-500.0,0.000392,120]
[398436033,1765654314068,-500.0,0.00039212,120]
[398436034,1765654314101,-500.0,0.00039223,120]
[398436035,1765654314136,-500.0,0.00039234,120]
[398436036,1765654314171,-500.0,0.00039245,120]
[398436037,1765654314203,-500.0,0.00039256,120]
[398436038,1765654314240,-500.0,0.00039268,120]
[398436039,1765654314272,-500.0,0.00039279,120]
[398436040,1765654314304,-500.0,0.0003929,120]
[398436041,1765654314336,-500.0,0.00039301,120]
[398436042,1765654314370,-500.0,0.00039312,120]
[398436043,1765654314405,-500.0,0.00039323,120]
[398436044,1765654314439,-500.0,0.00039335,120]
[398436045,1765654314471,-500.0,0.00039346,120]
[398436046,1765654314503,-500.0,0.00039357,120]
[398436047,1765654314536,-500.0,0.00039368,120]
[398436048,1765654314569,-500.0,0.00039379,120]
[398436049,1765654314603,-500.0,0.00039391,120]
[398436050,1765654314642,-500.0,0.00039402,120]
[398436051,1765654314677,-500.0,0.00039413,120]
[398436052,1765654314713,-500.0,0.00039424,120]
[398436053,1765654314745,-500.0,0.00039435,120]
[398436054,1765654314779,-500.0,0.00039446,120]
[398436055,1765654314810,-2104.16,0.00039452,120]
[398436056,1765654315118,-500.0,0.00039452,30]
[398436057,1765654315154,-2000.0,0.00039452,120]
[398436058,1765654315189,-1537.83,0.00039452,70]
[398436059,1765654315228,-4112.48,0.00039452,120]
[398436060,1765654315265,-500.0,0.00039458,120]
[398436061,1765654315299,-500.0,0.00039469,120]
[398436062,1765654315333,-500.0,0.0003948,120]
[398436063,1765654315366,-500.0,0.00039491,120]
[398436064,1765654315399,-1500.0,0.000395,30]
[398436065,1765654315433,-500.0,0.00039502,120]
[398436066,1765654315469,-500.0,0.00039514,120]
[398436067,1765654315502,-500.0,0.00039525,120]
[398436068,1765654315536,-500.0,0.00039536,120]
[398436069,1765654315568,-500.0,0.00039547,120]
[398436070,1765654315601,-500.0,0.00039558,120]
[398436071,1765654315634,-500.0,0.00039569,120]
[398436072,1765654315668,-500.0,0.00039581,120]
[398436073,1765654315700,-500.0,0.00039592,120]
[398436074,1765654315732,-500.0,0.000396,120]
[398436075,1765654315763,-500.0,0.000396,120]
[398436076,1765654315799,-500.0,0.000396,120]
[398436077,1765654315832,-500.0,0.000396,120]
[398436078,1765654315864,-500.0,0.000396,120]
[398436079,1765654315899,-500.0,0.00039603,120]
[398436080,1765654315932,-500.0,0.00039614,120]
[398436081,1765654315964,-500.0,0.00039625,120]
[398436082,1765654315997,-500.0,0.00039637,120]
[398436083,1765654316029,-500.0,0.00039648,120]
[398436084,1765654316063,-500.0,0.00039659,120]
[398436085,1765654316097,-500.0,0.0003967,120]
[398436086,1765654316129,-500.0,0.00039681,120]
[398436087,1765654316163,-500.0,0.00039692,120]
[398436088,1765654316198,-153.54,0.00039695,120]
[398436089,1765654316237,-176.36,0.00039695,120]
[398436090,1765654316273,-168.06,0.00039695,120]
[398436091,1765654316309,-165.49,0.00039695,120]
[398436092,1765654316347,-155.54,0.00039695,120]
[398436093,1765654316385,-159.42,0.00039703,120]
[398436094,1765654316423,-500.0,0.00039704,120]
[398436095,1765654316460,-154.79,0.00039708,120]
[398436096,1765654316496,-155.54,0.00039708,120]
[398436097,1765654316534,-155.54,0.00039708,120]
[398436098,1765654316571,-159.42,0.00039709,120]
[398436099,1765654316609,-500.0,0.00039715,120]
[398436100,1765654316647,-2104.16,0.00039726,120]
[398436101,1765654316684,-500.0,0.00039726,30]
[398436102,1765654316722,-199.0,0.00039726,38]
[398436103,1765654316761,-1537.83,0.00039726,72]
[398436104,1765654316796,-536.1277627,0.00039726,120]
[398436105,1765654316830,-463.0,0.00039726,120]
[398436106,1765654316864,-153.54,0.00039795,120]
[398436107,1765654316897,-176.36,0.00039795,120]
[398436108,1765654316929,-168.06,0.00039795,120]
[398436109,1765654316960,-165.49,0.00039795,120]
[398436110,1765654316990,-155.54,0.00039795,120]
[398436111,1765654317021,-159.42,0.00039803,120]
[398436112,1765654317057,-154.79,0.00039808,120]
[398436113,1765654317091,-155.54,0.00039808,120]
[398436114,1765654317125,-155.54,0.00039808,120]
[398436115,1765654317159,-159.42,0.00039809,120]
[398436116,1765654317193,-7259.41338909,0.0003988,30]
[398436117,1765654317226,-153.54,0.00039895,120]
[398436118,1765654317259,-176.36,0.00039895,120]
[398436119,1765654317292,-168.06,0.00039895,120]
[398436120,1765654317328,-165.49,0.00039895,120]
[398436121,1765654317363,-155.54,0.00039895,120]
[398436122,1765654317396,-251.13777983,0.000399,120]
[398436123,1765654317428,-159.42,0.00039903,120]
[398436124,1765654317459,-154.79,0.00039908,120]
[398436125,1765654317490,-155.54,0.00039908,120]
[398436126,1765654317523,-159.42,0.00039909,120]
[398436127,1765654317556,-153.54,0.00039995,120]
[398436128,1765654317588,-176.39140696,0.00039995,120]
[398436129,1765654317622,-168.06,0.00039995,120]
[398436130,1765654317657,-165.49,0.00039995,120]
[398436131,1765654317691,-1217.5858468,0.0004,120]
[398436132,1765654317723,-249.999999,0.0004,120]
[398436133,1765654317756,-2104.16,0.0004,120]
[398436134,1765654317788,-150.0,0.0004,90]
[398436135,1765654317820,-200.0,0.0004,120]
[398436136,1765654317853,-2000.0,0.0004,120]
[398436137,1765654317883,-414.64761276,0.0004,120]
[398436138,1765654317913,-209.3,0.0004,120]
[398436139,1765654317945,-200.0,0.0004,60]
[398436140,1765654317977,-200.0,0.0004,50]
[398436141,1765654318009,-300.0,0.0004,50]
[398436142,1765654318041,-500.0,0.0004,30]
[398436143,1765654318073,-331.6999592,0.0004,120]
[398436144,1765654318105,-150.0,0.0004,120]
[398436145,1765654318138,-30000.0,0.0004,30]
[398436146,1765654318177,-300.0,0.0004,120]
[398436147,1765654318214,-509.0,0.0004,120]
[398436148,1765654318256,-500.0,0.0004,120]
[398436149,1765654318291,-501.0,0.0004,120]
[398436150,1765654318600,-2000.0,0.0004,120]
[398436151,1765654318636,-345.83817363,0.0004,120]
[398436152,1765654318668,-155.64,0.0004,120]
[398436153,1765654318704,-18475.0696121,0.0004,30]
[398436154,1765654318739,-2000.0,0.0004,120]
[398436155,1765654318772,-2000.0,0.0004,120]
[398436156,1765654318804,-2000.0,0.0004,120]
[398436157,1765654318838,-2000.0,0.0004,120]
[398436158,1765654318871,-2000.0,0.0004,120]
[398436159,1765654318902,-2000.0,0.0004,120]
[398436160,1765654318932,-2000.0,0.0004,120]
[398436161,1765654318964,-2000.0,0.0004,120]
[398436162,1765654318995,-2000.0,0.0004,120]
[398436163,1765654319027,-2000.0,0.0004,120]
[398436164,1765654319060,-501.0,0.0004,60]
[398436165,1765654319095,-9206.72361999,0.0004,90]
[398436166,1765654319130,-2427.91027048,0.0004,120]
[398436167,1765654319171,-222.0,0.0004,120]
[398436168,1765654319211,-1961.6,0.0004,120]
[398436169,1765654319250,-461.46001256,0.0004,60]
[398436170,1765654319283,-1500.0,0.0004,30]
[398436171,1765654319317,-524.0,0.0004,120]
[398436172,1765654319364,-39794.3440754,0.0004,120]
[398436173,1765654319405,-2017.15181942,0.0004,120]
[398436174,1765654319441,-378.92,0.0004,120]
[398436175,1765654319479,-214.12,0.0004,120]
[398436176,1765654319516,-150.74,0.0004,120]
[398436177,1765654319556,-150.0,0.0004,60]
[398436178,1765654319598,-4225.26,0.0004,120]
[398436179,1765654319633,-199.84,0.0004,120]
[398436180,1765654319670,-292.37,0.0004,120]
[398436181,1765654319704,-600.85,0.0004,120]
[398436182,1765654319737,-500.33,0.0004,120]
[398436183,1765654319771,-187.04,0.0004,120]
[398436184,1765654319805,-156.5,0.0004,120]
[398436185,1765654319838,-481.04173315,0.0004,120]
[398436186,1765654319870,-481.04173315,0.0004,30]
[398436187,1765654319907,-1537.83,0.0004,74]
[398436188,1765654319940,-2500.0,0.0004,120]
[398436189,1765654319974,-310.91,0.0004,120]
[398436190,1765654320007,-238.29,0.0004,120]
[398436191,1765654320040,-639.9,0.0004,120]
[398436192,1765654320074,-402.38,0.0004,120]
[398436193,1765654320110,-2500.0,0.0004,120]
[398436194,1765654320149,-563.4,0.0004,120]
[398436195,1765654320188,-483.0,0.0004,90]
[398436196,1765654320228,-159.44,0.00040003,120]
[398436197,1765654320266,-154.79,0.00040008,120]
[398436198,1765654320305,-159.42,0.00040009,120]
[398436199,1765654320344,-215.39289731,0.00040011,120]
[398436200,1765654320380,-483.0,0.00040076,90]
[398436201,1765654320416,-153.56,0.00040095,120]
[398436202,1765654320458,-168.0632015,0.00040095,120]
[398436203,1765654320494,-165.49,0.00040095,120]
[398436204,1765654320531,-5659.58,0.000401,30]
[398436205,1765654320569,-154.79,0.00040108,120]
[398436206,1765654320609,-159.42,0.00040109,120]
[398436207,1765654320647,-200.999999,0.0004018,120]
[398436208,1765654320687,-165.49637386,0.00040195,120]
[398436209,1765654320723,-154.79,0.00040208,120]
[398436210,1765654320758,-159.46988497,0.00040209,120]
[398436211,1765654320792,-150.0,0.00040246,30]
[398436212,1765654320825,-822.49144703,0.00040246,30]
[398436213,1765654320857,-150.0,0.00040246,30]
[398436214,1765654320891,-606.2709856,0.00040246,30]
[398436215,1765654320924,-150.0,0.00040246,30]
[398436216,1765654320962,-532.07320718,0.00040246,30]
[398436217,1765654320994,-150.0,0.00040246,30]
[398436218,1765654321028,-7246.31731291,0.00040246,30]
[398436219,1765654321061,-2104.16,0.00040273,120]
[398436220,1765654321093,-500.0,0.00040273,30]
[398436221,1765654321127,-1537.83,0.00040273,76]
[398436222,1765654321163,-154.79,0.00040308,120]
[398436223,1765654321198,-154.79,0.00040408,120]
[398436224,1765654321234,-199.0,0.0004041,39]
[398436225,1765654321270,-463.18314462,0.000405,120]
[398436226,1765654321304,-1500.0,0.000405,30]
[398436227,1765654321346,-304.0,0.000405,30]
[398436228,1765654321389,-2500.0,0.000405,120]
[398436229,1765654321427,-2500.0,0.000405,120]
[398436230,1765654321470,-154.79,0.00040508,120]
[398436231,1765654321509,-2104.16,0.00040547,120]
[398436232,1765654321544,-421.46331466,0.00040547,30]
[398436233,1765654321580,-1537.83,0.00040547,78]
[398436234,1765654321618,-4112.48,0.00040547,120]
[398436235,1765654321651,-2000.0,0.00040548,120]
[398436236,1765654321685,-1298.0,0.00040608,30]
[398436237,1765654321721,-154.79,0.00040608,120]
[398436238,1765654321758,-154.79,0.00040708,120]
[398436239,1765654321793,-154.79,0.00040808,120]
[398436240,1765654321826,-2104.16,0.00040821,120]
[398436241,1765654321860,-1537.83,0.00040821,80]
[398436242,1765654321892,-3997.583,0.00040824,59]
[398436243,1765654321925,-500.0,0.00040889,30]
[398436245,1765654322305,-154.79,0.00040908,120]
[398436246,1765654322390,-215.0,0.0004093,30]
[398436247,1765654322454,-537.15628872,0.00041,30]
[398436248,1765654322505,-2000.0,0.00041,120]
[398436249,1765654322545,-200.0,0.00041,120]
[398436250,1765654322583,-150.0,0.00041,120]
[398436251,1765654322620,-599.50562873,0.00041,30]
[398436252,1765654322657,-1574.0,0.00041,120]
[398436253,1765654322691,-1495.21,0.00041,30]
[398436254,1765654322726,-1000.0,0.00041,120]
[398436255,1765654322760,-64827.57029808,0.00041,120]
[398436256,1765654322795,-314.0,0.00041,120]
[398436257,1765654322828,-406.0,0.00041,120]
[398436258,1765654322865,-500.0,0.00041,61]
[398436259,1765654322898,-535.0,0.00041,90]
[398436260,1765654322931,-1500.0,0.00041,30]
[398436261,1765654322963,-356138.30644688,0.00041,30]
[398436262,1765654322997,-500.0,0.00041,120]
[398436263,1765654323032,-500.0,0.00041,120]
[398436264,1765654323065,-500.0,0.00041,120]
[398436265,1765654323098,-500.0,0.00041,120]
[398436266,1765654323132,-150.0,0.00041,60]
[398436267,1765654323167,-2500.0,0.00041,120]
[398436268,1765654323202,-154.79,0.00041008,120]
[398436269,1765654323236,-1298.0,0.00041026,30]
[398436270,1765654323270,-500.0,0.00041095,120]
[398436271,1765654323307,-500.0,0.00041095,120]
[398436272,1765654323342,-500.0,0.00041095,120]
[398436273,1765654323385,-500.0,0.00041095,120]
[398436274,1765654323426,-500.0,0.00041095,120]
[398436275,1765654323464,-500.0,0.00041095,120]
[398436276,1765654323503,-500.0,0.00041095,120]
[398436277,1765654323538,-500.0,0.00041095,120]
[398436278,1765654323581,-500.0,0.00041095,120]
[398436279,1765654323617,-500.0,0.00041095,120]
[398436280,1765654323652,-500.0,0.00041095,120]
[398436281,1765654323685,-500.0,0.00041095,120]
[398436282,1765654323721,-500.0,0.00041095,120]
[398436283,1765654323756,-500.0,0.00041095,120]
[398436284,1765654323790,-500.0,0.00041095,120]
[398436285,1765654323824,-500.0,0.00041095,120]
[398436286,1765654323857,-500.0,0.00041095,120]
[398436287,1765654323895,-500.0,0.00041095,120]
[398436288,1765654323929,-500.0,0.00041095,120]
[398436289,1765654323963,-500.0,0.00041095,120]
[398436290,1765654323996,-500.0,0.00041095,120]
[398436291,1765654324030,-500.0,0.00041095,120]
[398436292,1765654324064,-500.0,0.00041095,120]
[398436293,1765654324097,-500.0,0.00041095,120]
[398436294,1765654324130,-500.0,0.00041095,120]
[398436295,1765654324163,-2104.16,0.00041095,120]
[398436296,1765654324198,-500.0,0.00041095,120]
[398436297,1765654324233,-500.0,0.00041095,120]
[398436298,1765654324267,-500.0,0.00041095,120]
[398436299,1765654324300,-500.0,0.00041095,120]
[398436300,1765654324334,-500.0,0.00041095,120]
[398436301,1765654324371,-500.0,0.00041095,120]
[398436302,1765654324410,-500.0,0.00041095,120]
[398436303,1765654324446,-500.0,0.00041095,120]
[398436304,1765654324487,-500.0,0.00041095,120]
[398436305,1765654324528,-500.0,0.00041095,120]
[398436306,1765654324570,-201.32555251,0.00041095,120]
[398436307,1765654324614,-525.53234711,0.00041095,120]
[398436308,1765654324653,-199.0,0.00041095,40]
[398436309,1765654324688,-1537.83,0.00041095,120]
[398436310,1765654324729,-252.6,0.00041096,120]
[398436311,1765654324762,-217.74,0.00041096,120]
[398436312,1765654324796,-3277.47,0.00041096,120]
[398436313,1765654324829,-151.0,0.00041096,120]
[398436314,1765654324863,-151.0,0.00041096,120]
[398436315,1765654324895,-151.0,0.00041096,120]
[398436316,1765654324929,-174.246287,0.00041096,120]
[398436317,1765654324963,-2000.0,0.00041096,120]
[398436318,1765654324996,-531.0,0.00041096,120]
[398436319,1765654325030,-526.815297,0.000411,120]
[398436320,1765654325078,-215.39289731,0.00041107,120]
[398436321,1765654325116,-154.79,0.00041108,120]
[398436322,1765654325157,-558.42,0.00041125,120]
[398436323,1765654325197,-500.0,0.00041163,30]
[398436324,1765654325239,-276.04580997,0.0004118,60]
[398436325,1765654325278,-154.79,0.00041208,120]
[398436326,1765654325317,-531.0,0.00041233,120]
[398436327,1765654325355,-4000.0,0.00041234,31]
[398436328,1765654325394,-150.0,0.00041244,120]
[398436329,1765654325434,-154.79,0.00041308,120]
[398436330,1765654325471,-2104.16,0.00041369,120]
[398436331,1765654325505,-1537.83,0.00041369,120]
[398436332,1765654325541,-531.0,0.0004137,120]
[398436333,1765654325579,-300.0,0.000414,120]
[398436334,1765654325618,-154.79,0.00041408,120]
[398436335,1765654325657,-2672.70625823,0.00041414,120]
[398436336,1765654325691,-500.0,0.00041437,30]
[398436337,1765654325724,-1298.0,0.00041445,30]
[398436338,1765654325757,-200.0,0.00041473,120]
[398436339,1765654325790,-214.27960667,0.000415,120]
[398436340,1765654326106,-1500.0,0.000415,30]
[398436341,1765654326145,-531.0,0.00041507,120]
[398436342,1765654326184,-154.79,0.00041508,120]
[398436343,1765654326223,-3247.71063143,0.00041555,120]
[398436344,1765654326264,-309.26627583,0.0004159,120]
[398436345,1765654326303,-154.79,0.00041608,120]
[398436346,1765654326344,-2104.16,0.00041643,120]
[398436347,1765654326380,-1537.83,0.00041643,120]
[398436348,1765654326420,-4112.48,0.00041643,120]
[398436349,1765654326457,-531.0,0.00041644,120]
[398436350,1765654326487,-5659.58,0.000417,30]
[398436351,1765654326519,-528.48418971,0.000417,120]
[398436352,1765654326553,-154.79,0.00041708,120]
[398436353,1765654326586,-500.0,0.00041711,30]
[398436354,1765654326620,-150.0,0.00041771,120]
[398436355,1765654326653,-199.0,0.0004178,41]
[398436356,1765654326685,-531.0,0.00041781,120]
[398436357,1765654326719,-483.0,0.00041792,90]
[398436358,1765654326755,-154.79,0.00041808,120]
[398436359,1765654326786,-1298.0,0.00041864,30]
[398436360,1765654326819,-154.79,0.00041908,120]
[398436361,1765654326851,-150.0,0.00041917,60]
[398436362,1765654326884,-150.0,0.00041917,60]
[398436363,1765654326917,-2104.16,0.00041917,120]
[398436364,1765654326949,-1537.83,0.00041917,120]
[398436365,1765654326983,-531.0,0.00041918,120]
[398436366,1765654327016,-500.0,0.00041985,30]
[398436367,1765654327050,-150.0,0.00041999,120]
[398436368,1765654327085,-1000.0,0.00041999,120]
[398436369,1765654327121,-50000.0,0.00042,42]
[398436370,1765654327156,-3145.8,0.00042,120]
[398436371,1765654327192,-348.84399933,0.00042,120]
[398436372,1765654327227,-462.98502805,0.00042,100]
[398436373,1765654327265,-450.0,0.00042,120]
[398436374,1765654327298,-200.0,0.00042,120]
[398436375,1765654327331,-200.0,0.00042,50]
[398436376,1765654327364,-200.0,0.00042,50]
[398436377,1765654327400,-150.0,0.00042,120]
[398436378,1765654327438,-305.7,0.00042,120]
[398436379,1765654327470,-300.0,0.00042,120]
[398436380,1765654327503,-399.34349141,0.00042,120]
[398436381,1765654327538,-157.0,0.00042,30]
[398436382,1765654327573,-500.0,0.00042,62]
[398436383,1765654327608,-3185.0,0.00042,120]
[398436384,1765654327642,-680.62001823,0.00042,120]
[398436385,1765654327679,-509.405684,0.00042,120]
[398436386,1765654327715,-207.51541388,0.00042,45]
[398436387,1765654327750,-150.0,0.00042,60]
[398436388,1765654327785,-150.0,0.00042,53]
[398436389,1765654327820,-154.79,0.00042008,120]
[398436390,1765654327855,-160.0,0.00042009,120]
[398436391,1765654327891,-531.0,0.00042055,120]
[398436392,1765654327925,-212655.5350775,0.000421,38]
[398436393,1765654327960,-154.79,0.00042108,120]
[398436394,1765654327993,-2104.16,0.00042191,120]
[398436395,1765654328027,-1537.83,0.00042191,120]
[398436396,1765654328063,-531.0,0.00042192,120]
[398436397,1765654328095,-215.39289731,0.00042203,120]
[398436398,1765654328132,-154.79,0.00042208,120]
[398436399,1765654328171,-10565.3861,0.00042211,30]
[398436400,1765654328209,-150.0,0.00042217,120]
[398436401,1765654328249,-500.0,0.00042259,30]
[398436402,1765654328288,-1298.0,0.00042282,30]
[398436403,1765654328330,-154.79,0.00042308,120]
[398436404,1765654328368,-531.0,0.00042329,120]
[398436405,1765654328408,-1000.0,0.00042389,120]
[398436406,1765654328448,-1000.0,0.00042389,120]
[398436407,1765654328487,-1000.0,0.00042389,120]
[398436408,1765654328526,-1000.0,0.00042389,120]
[398436409,1765654328566,-1000.0,0.00042389,120]
[398436410,1765654328605,-1000.0,0.00042389,120]
[398436411,1765654328644,-1000.0,0.00042389,120]
[398436412,1765654328683,-1000.0,0.00042389,120]
[398436413,1765654328722,-1000.0,0.00042389,120]
[398436414,1765654328761,-1000.0,0.00042389,120]
[398436415,1765654328799,-525.96713607,0.00042389,120]
[398436416,1765654328838,-250.0,0.00042404,30]
[398436417,1765654328877,-414.0,0.00042404,30]
[398436418,1765654328913,-520.0,0.00042404,30]
[398436419,1765654328949,-151.0,0.00042404,30]
[398436420,1765654328986,-151.0,0.00042404,30]
[398436421,1765654329024,-151.0,0.00042404,30]
[398436422,1765654329059,-151.0,0.00042404,30]
[398436423,1765654329096,-429.318,0.00042404,30]
[398436424,1765654329131,-539.24,0.00042404,30]
[398436425,1765654329168,-156.587,0.00042404,30]
[398436426,1765654329205,-250.0,0.00042404,30]
[398436427,1765654329242,-151.0,0.00042404,30]